bitfinex/quotes_BTCUSD_20241226
["timestamp","ask_amount","ask_price","bid_price","bid_amount"]
[1735179193912,0.36330457,99014.0,99013.0,8.58e-05]
[1735179194119,0.36330457,99014.0,99013.0,0.0010858]
[1735179195697,0.36330457,99014.0,99013.0,8.58e-05]
[1735179196075,0.36730457,99014.0,99013.0,8.58e-05]
[1735179196473,0.36930457,99014.0,99013.0,8.58e-05]
[1735179196823,0.36530457,99014.0,99013.0,8.58e-05]
[1735179197235,0.36930457,99014.0,99013.0,8.58e-05]
[1735179200094,0.36330457,99014.0,99013.0,8.58e-05]
[1735179200320,0.36730457,99014.0,99013.0,8.58e-05]
[1735179200500,0.1041714,99014.0,99013.0,8.58e-05]
[1735179201631,0.1061714,99014.0,99013.0,8.58e-05]
[1735179201826,0.1041714,99014.0,99013.0,8.58e-05]
[1735179202003,0.2041714,99014.0,99013.0,8.58e-05]
[1735179202214,0.2021714,99014.0,99013.0,8.58e-05]
[1735179202745,0.2001714,99014.0,99013.0,8.58e-05]
[1735179203031,0.2001714,99014.0,99013.0,0.0010858]
[1735179203478,0.1001714,99014.0,99013.0,0.0010858]
[1735179203728,0.20118283,99014.0,99013.0,0.0010858]
[1735179206682,0.20118283,99014.0,99013.0,0.1626798]
[1735179206798,0.1001714,99014.0,99013.0,0.1626798]
[1735179207010,0.1001714,99014.0,99013.0,0.16629976]
[1735179209433,0.1001714,99014.0,99013.0,0.16715962]
[1735179213034,0.1001714,99014.0,99013.0,0.30229879]
[1735179213874,0.2762714,99014.0,99013.0,0.30229879]
[1735179214483,0.2762714,99014.0,99013.0,0.25746318]
[1735179215490,0.2001714,99014.0,99013.0,0.25746318]
[1735179215685,0.2001714,99014.0,99013.0,0.16715962]
[1735179219621,0.3273714,99014.0,99013.0,0.00556562]
[1735179219819,0.4773714,99014.0,99013.0,0.00556562]
[1735179220080,0.4773714,99014.0,99013.0,0.0010858]
[1735179220520,0.4773714,99014.0,99013.0,8.58e-05]
[1735179220719,0.4803714,99014.0,99013.0,8.58e-05]
[1735179220894,0.39265929,99014.0,99013.0,8.58e-05]
[1735179221237,0.39465929,99014.0,99013.0,0.00454958]
[1735179221442,0.39465929,99014.0,99013.0,8.58e-05]
[1735179221666,0.34265929,99014.0,99013.0,0.00454958]
[1735179221874,0.33965929,99014.0,99013.0,8.58e-05]
[1735179222271,0.34165929,99014.0,99013.0,8.58e-05]
[1735179222604,0.34365929,99014.0,99013.0,8.58e-05]
[1735179223931,0.34165929,99014.0,99013.0,8.58e-05]
[1735179224991,0.0021714,99014.0,99013.0,0.1616798]
[1735179225193,0.0021714,99014.0,99013.0,0.27014709]
[1735179225923,0.0001714,99014.0,99013.0,0.27014709]
[1735179226365,0.0001714,99014.0,99013.0,0.27114709]
[1735179226740,0.0001714,99014.0,99013.0,0.36145065]
[1735179227899,0.0001714,99014.0,99013.0,0.27114709]
[1735179228115,0.0011714,99014.0,99013.0,0.27114709]
[1735179228714,0.0001714,99014.0,99013.0,0.27114709]
[1735179229114,0.0001714,99014.0,99013.0,0.82864867]
[1735179230558,0.0001714,99014.0,99013.0,0.60341672]
[1735179230987,0.0001714,99014.0,99013.0,0.60741672]
[1735179235632,0.0001714,99014.0,99013.0,0.78797769]
[1735179238478,0.0001714,99014.0,99013.0,0.60741672]
[1735179244084,0.0001714,99014.0,99013.0,0.78797769]
[1735179245641,0.0001714,99014.0,99013.0,0.86987769]
[1735179246772,0.0001714,99014.0,99013.0,0.82467148]
[1735179248456,0.0001714,99014.0,99013.0,0.78797769]
[1735179254592,0.0001714,99014.0,99013.0,0.27414709]
[1735179257511,0.0001714,99014.0,99013.0,0.60735487]
[1735179258556,0.2001714,99014.0,99013.0,0.34177455]
[1735179258780,0.2786714,99014.0,99013.0,0.00856677]
[1735179258982,0.1786714,99014.0,99013.0,0.09884314]
[1735179259186,0.0001714,99014.0,99013.0,0.28472946]
[1735179259395,4e-07,99014.0,99013.0,0.33202946]
[1735179259620,4e-07,99014.0,99013.0,0.32902946]
[1735179259830,4e-07,99014.0,99013.0,0.33002946]
[1735179260041,4e-07,99014.0,99013.0,0.49295118]
[1735179260258,4e-07,99014.0,99013.0,0.40267481]
[1735179260669,4e-07,99014.0,99013.0,0.40567481]
[1735179261455,4e-07,99014.0,99013.0,0.40467481]
[1735179261900,4e-07,99014.0,99013.0,0.73788026]
[1735179262272,4e-07,99014.0,99013.0,0.73888026]
[1735179263143,4e-07,99014.0,99013.0,0.69058026]
[1735179263557,4e-07,99014.0,99013.0,0.60868026]
[1735179266478,4e-07,99014.0,99013.0,0.27547481]
[1735179267645,4e-07,99014.0,99013.0,0.41082671]
[1735179268970,4e-07,99014.0,99013.0,0.60864903]
[1735179270004,4e-07,99014.0,99013.0,0.78911823]
[1735179271202,4e-07,99014.0,99013.0,0.60864903]
[1735179281875,0.0794,99043.0,99013.0,0.60864903]
[1735179281876,8e-07,99032.0,99029.0,0.161568]
[1735179282086,0.00015657,99032.0,99031.0,0.161565]
[1735179282288,0.00015657,99032.0,99031.0,0.26555132]
[1735179282496,0.00015657,99032.0,99031.0,0.26891096]
[1735179283306,0.00015657,99032.0,99031.0,0.27491096]
[1735179283508,0.00115657,99032.0,99031.0,0.27491096]
[1735179284780,0.00115657,99032.0,99031.0,0.27691096]
[1735179288800,0.00115657,99032.0,99031.0,0.36728938]
[1735179289103,0.00115657,99032.0,99031.0,0.36811253]
[1735179292926,0.18285657,99032.0,99031.0,0.26412621]
[1735179293336,0.183868,99032.0,99031.0,0.26412621]
[1735179293538,0.18285657,99032.0,99031.0,0.26412621]
[1735179294437,0.18285657,99032.0,99031.0,0.17374779]
[1735179294828,0.18185657,99032.0,99031.0,0.16774779]
[1735179295204,0.18285657,99032.0,99031.0,0.17274779]
[1735179295427,0.18185657,99032.0,99031.0,0.16874779]
[1735179295851,0.18185657,99032.0,99031.0,0.17074779]
[1735179296080,0.18185657,99032.0,99031.0,0.16574779]
[1735179296267,0.18185657,99032.0,99031.0,0.16874779]
[1735179297789,0.18185657,99032.0,99031.0,0.16883359]
[1735179298391,0.182868,99032.0,99031.0,0.16883359]
[1735179298597,0.18185657,99032.0,99031.0,0.16883359]
[1735179298807,0.00015657,99032.0,99031.0,0.42281991]
[1735179299019,0.09029256,99061.0,99045.0,0.082]
[1735179299238,0.09029256,99061.0,99051.0,0.06942223]
[1735179299239,0.09081169,99061.0,99051.0,0.06942223]
[1735179299459,0.09081169,99061.0,99058.0,0.161521]
[1735179299687,0.09081169,99061.0,99060.0,0.161518]
[1735179299895,0.09081169,99061.0,99060.0,0.41550432]
[1735179300105,0.01005469,99061.0,99060.0,0.41550432]
[1735179300277,6.9e-07,99061.0,99060.0,0.52050432]
[1735179300685,6.9e-07,99061.0,99060.0,0.53238194]
[1735179301433,0.00200069,99061.0,99060.0,0.53238194]
[1735179302098,0.00300069,99061.0,99060.0,0.51838194]
[1735179302308,6.9e-07,99061.0,99060.0,0.5296494]
[1735179302515,6.9e-07,99061.0,99060.0,1.32691047]
[1735179302688,0.00096069,99061.0,99060.0,1.33591047]
[1735179302891,0.00096069,99061.0,99060.0,1.33267449]
[1735179303093,0.00096069,99061.0,99060.0,0.87227011]
[1735179303301,0.00096069,99061.0,99060.0,0.87827011]
[1735179303302,0.00069052,99061.0,99060.0,0.87827011]
[1735179304292,0.1,99085.0,99061.0,0.15]
[1735179304498,0.1001557,99085.0,99084.0,0.161479]
[1735179304706,0.0001557,99085.0,99084.0,0.26546532]
[1735179304873,0.0001557,99085.0,99084.0,0.26618044]
[1735179305675,0.0001557,99085.0,99084.0,0.27018044]
[1735179305927,0.0001557,99085.0,99084.0,0.60303713]
[1735179306306,0.0001557,99085.0,99084.0,0.60403713]
[1735179306701,0.0001557,99085.0,99084.0,0.75403713]
[1735179306903,0.0001557,99085.0,99084.0,0.42118044]
[1735179307714,0.0001557,99085.0,99084.0,0.43248542]
[1735179308566,0.0001557,99085.0,99084.0,0.28248542]
[1735179308723,0.0001557,99085.0,99084.0,0.00571512]
[1735179308925,0.0001557,99085.0,99084.0,0.10970144]
[1735179309898,0.0002414,99085.0,99084.0,0.10970144]
[1735179310946,0.3263414,99085.0,99084.0,0.00571512]
[1735179311354,0.3263414,99085.0,99084.0,0.005]
[1735179317326,0.3263414,99085.0,99084.0,0.004]
[1735179317536,0.3263414,99085.0,99060.0,0.0001714]
[1735179317537,0.3261,99061.0,99060.0,0.0001714]
[1735179318063,0.3261,99061.0,99060.0,0.00337296]
[1735179318202,0.3261,99061.0,99060.0,0.0001714]
[1735179318822,0.3261,99061.0,99060.0,0.00415628]
[1735179318976,0.3261,99061.0,99060.0,0.0031714]
[1735179319176,0.3261,99061.0,99060.0,0.00715628]
[1735179320306,0.3261,99061.0,99060.0,0.00815628]
[1735179320945,0.3261,99061.0,99060.0,0.00715628]
[1735179321111,0.3261,99061.0,99060.0,0.00415628]
[1735179321349,0.3261,99061.0,99060.0,0.00515628]
[1735179321525,0.3261,99061.0,99060.0,0.00715628]
[1735179321730,0.3261,99061.0,99060.0,0.00415628]
[1735179322070,0.3261,99061.0,99060.0,0.00615628]
[1735179322774,0.1,99069.0,99061.0,0.161516]
[1735179322977,0.1,99076.0,99075.0,0.161493]
[1735179324580,0.101,99076.0,99075.0,0.161493]
[1735179324845,0.102,99076.0,99075.0,0.161493]
[1735179326453,0.102,99076.0,99075.0,0.16469111]
[1735179326823,0.102,99076.0,99075.0,0.1655114]
[1735179327971,0.101,99076.0,99075.0,0.1655114]
[1735179328175,0.1,99076.0,99075.0,0.1655114]
[1735179328399,0.101,99076.0,99075.0,0.1655114]
[1735179328637,0.101,99076.0,99075.0,0.1675114]
[1735179329763,0.1,99076.0,99075.0,0.1675114]
[1735179333311,0.20101143,99076.0,99075.0,0.0060184]
[1735179333543,0.27831143,99076.0,99075.0,0.002]
[1735179333671,0.2773,99076.0,99075.0,0.002]
[1735179333901,0.2,99076.0,99075.0,0.002]
[1735179334458,0.201,99076.0,99070.0,0.0001714]
[1735179334664,0.00101143,99075.0,99070.0,0.0001714]
[1735179334866,0.00101143,99075.0,99071.0,0.00400905]
[1735179336799,0.00101143,99075.0,99072.0,0.161498]
[1735179337100,0.2,99076.0,99073.0,0.00082436]
[1735179338075,0.00101143,99075.0,99073.0,0.00082436]
[1735179338475,0.00101143,99075.0,99073.0,0.00282436]
[1735179338680,0.00101143,99075.0,99074.0,0.0040077]
[1735179338998,0.00101143,99075.0,99073.0,0.002]
[1735179339563,0.10101143,99075.0,99074.0,0.00318537]
[1735179339844,0.10101143,99075.0,99074.0,0.00418537]
[1735179339981,0.10101143,99075.0,99074.0,0.001]
[1735179340192,0.10101143,99075.0,99073.0,0.002]
[1735179340395,0.1,99074.0,99073.0,0.003]
[1735179340644,0.20101143,99074.0,99073.0,0.001]
[1735179340886,0.32881143,99074.0,99073.0,0.001]
[1735179341054,0.33896041,99074.0,99073.0,0.003]
[1735179341759,0.33896041,99074.0,99073.0,0.001]
[1735179341994,0.1,99071.0,99070.0,0.0001714]
[1735179342172,0.17621143,99071.0,99070.0,0.0001714]
[1735179342378,0.27621143,99071.0,99070.0,0.00418161]
[1735179342523,0.2752,99071.0,99070.0,0.0001714]
[1735179342927,0.42758632,99071.0,99070.0,0.0001714]
[1735179343214,0.45058632,99071.0,99070.0,0.0001714]
[1735179343747,0.45258632,99071.0,99070.0,0.0001714]
[1735179344149,0.45558632,99071.0,99070.0,0.0001714]
[1735179345074,0.45358632,99071.0,99070.0,0.0001714]
[1735179345274,0.45558632,99071.0,99070.0,0.0001714]
[1735179346137,0.55558632,99071.0,99070.0,0.0001714]
[1735179346697,0.58706778,99071.0,99070.0,0.0001714]
[1735179347619,0.55258632,99071.0,99070.0,0.0001714]
[1735179347754,0.55858632,99071.0,99070.0,0.0011714]
[1735179348738,0.55658632,99071.0,99070.0,0.0011714]
[1735179348911,0.55958632,99071.0,99070.0,0.0011714]
[1735179349337,0.55658632,99071.0,99070.0,0.0011714]
[1735179349771,0.55958632,99071.0,99070.0,0.0011714]
[1735179352733,0.209,99071.0,99070.0,0.0011714]
[1735179354960,0.109,99071.0,99070.0,0.0011714]
[1735179355160,0.21001143,99071.0,99070.0,0.0011714]
[1735179355490,0.209,99071.0,99070.0,0.0011714]
[1735179356116,0.109,99071.0,99070.0,0.0011714]
[1735179356318,0.21001143,99071.0,99070.0,0.0011714]
[1735179356519,0.209,99071.0,99070.0,0.0011714]
[1735179356752,0.109,99071.0,99070.0,0.0011714]
[1735179356885,0.21001143,99071.0,99070.0,0.0011714]
[1735179357067,0.209,99071.0,99070.0,0.0011714]
[1735179357721,0.2,99071.0,99070.0,0.0001714]
[1735179357932,0.206,99071.0,99070.0,0.0011714]
[1735179358130,0.206,99071.0,99070.0,0.0001714]
[1735179358131,0.209,99071.0,99070.0,0.0001714]
[1735179358330,0.1090857,99071.0,99070.0,0.0001714]
[1735179358561,0.2060857,99071.0,99070.0,0.0001714]
[1735179359044,0.2070857,99071.0,99070.0,0.0001714]
[1735179359247,0.2060857,99071.0,99070.0,0.0001714]
[1735179359399,0.2090857,99071.0,99070.0,0.00338381]
[1735179359598,0.2090857,99071.0,99070.0,0.0011714]
[1735179359799,0.2000857,99071.0,99070.0,0.00438381]
[1735179360048,0.2000857,99071.0,99070.0,0.0041714]
[1735179360217,0.2000857,99071.0,99070.0,0.00738381]
[1735179360422,0.2000857,99071.0,99070.0,0.0041714]
[1735179360622,0.2000857,99071.0,99070.0,0.00738381]
[1735179362091,0.2785857,99071.0,99070.0,0.00738381]
[1735179362332,0.1000857,99071.0,99070.0,0.00738381]
[1735179362542,8.57e-05,99071.0,99070.0,0.54415872]
[1735179362746,8.57e-05,99071.0,99070.0,0.54315872]
[1735179362959,0.1,99104.0,99076.0,0.15]
[1735179363174,0.0001714,99106.0,99088.0,0.25398632]
[1735179363390,0.0001714,99106.0,99090.0,0.15]
[1735179363607,0.0001714,99106.0,99093.0,0.25398632]
[1735179364044,0.0001714,99106.0,99093.0,0.3027057]
[1735179365070,0.0011718,99094.0,99093.0,0.3097057]
[1735179365288,0.0011718,99094.0,99093.0,0.64182998]
[1735179365418,0.00090935,99094.0,99093.0,0.64182998]
[1735179366219,0.00190935,99094.0,99093.0,0.6715178]
[1735179366418,0.00190935,99094.0,99093.0,0.60873418]
[1735179366845,0.0001714,99113.0,99108.0,0.322878]
[1735179367050,0.0001714,99113.0,99110.0,0.161436]
[1735179367222,0.0001714,99113.0,99112.0,0.161433]
[1735179367427,0.0001714,99113.0,99112.0,0.26541932]
[1735179367634,0.1,99107.0,99093.0,0.43534066]
[1735179367834,0.1,99107.0,99094.0,0.25499534]
[1735179368203,0.1,99107.0,99100.0,0.15]
[1735179368410,0.1,99107.0,99101.0,0.10398632]
[1735179368834,0.101,99107.0,99102.0,0.161449]
[1735179369057,0.101,99107.0,99103.0,0.10398632]
[1735179369450,0.1,99107.0,99103.0,0.10398632]
[1735179369843,0.101,99107.0,99103.0,0.10398632]
[1735179370293,0.101,99107.0,99103.0,0.10998632]
[1735179370294,0.102,99107.0,99103.0,0.10998632]
[1735179371263,0.1,99107.0,99104.0,0.161446]
[1735179371439,0.1,99107.0,99104.0,0.26885199]
[1735179372413,0.101,99107.0,99104.0,0.26885199]
[1735179372620,0.1,99107.0,99104.0,0.26885199]
[1735179372821,0.1,99107.0,99104.0,0.27685199]
[1735179373018,0.101,99107.0,99104.0,0.27685199]
[1735179374241,0.1,99107.0,99104.0,0.26885199]
[1735179374585,0.1,99107.0,99104.0,0.27085199]
[1735179374810,0.0001714,99113.0,99105.0,0.10398632]
[1735179375023,0.0001714,99113.0,99112.0,0.161433]
[1735179375229,0.0001714,99113.0,99112.0,0.26541932]
[1735179375468,0.0001714,99113.0,99112.0,0.2688563]
[1735179375681,0.0001714,99113.0,99112.0,0.3490563]
[1735179375885,0.0001714,99113.0,99112.0,0.4990563]
[1735179376091,0.0001714,99113.0,99112.0,0.5010563]
[1735179376877,0.0001714,99113.0,99112.0,0.4990563]
[1735179377252,0.0011714,99113.0,99112.0,0.5060563]
[1735179377702,0.00064865,99113.0,99112.0,0.5060563]
[1735179378354,0.00064865,99113.0,99112.0,0.5070563]
[1735179378591,0.00064865,99113.0,99112.0,0.50845027]
[1735179378910,0.00064865,99113.0,99112.0,0.50745027]
[1735179379356,0.00064865,99113.0,99112.0,0.51045027]
[1735179379557,0.00064865,99113.0,99112.0,0.53345027]
[1735179380007,0.00064865,99113.0,99112.0,0.51045027]
[1735179380653,0.00064865,99113.0,99112.0,0.97467258]
[1735179381064,7e-05,99131.0,99128.0,0.311407]
[1735179381258,0.00025565,99129.0,99128.0,0.41539332]
[1735179381486,0.00025565,99129.0,99128.0,0.42020535]
[1735179382363,0.01087057,99160.0,99128.0,0.25879835]
[1735179382574,0.01087057,99160.0,99134.0,0.161396]
[1735179382787,0.01087057,99160.0,99135.0,0.10398632]
[1735179382984,0.01087057,99160.0,99135.0,0.10879582]
[1735179383324,0.11654785,99160.0,99135.0,0.10879582]
[1735179383620,0.01087057,99160.0,99135.0,0.10879582]
[1735179384210,0.1,99142.0,99136.0,0.161394]
[1735179384416,0.0001,99169.0,99138.0,0.161391]
[1735179384614,0.01113628,99161.0,99139.0,0.10398632]
[1735179384825,0.01113628,99161.0,99139.0,0.10880124]
[1735179385031,0.01113628,99161.0,99139.0,0.27018924]
[1735179385944,0.01113628,99161.0,99139.0,0.27318924]
[1735179386119,0.1,99141.0,99139.0,0.27318924]
[1735179386336,0.1,99141.0,99139.0,0.11180124]
[1735179386702,0.1,99142.0,99139.0,0.27318924]
[1735179386929,0.1,99141.0,99139.0,0.27018924]
[1735179387118,0.0001716,99161.0,99139.0,0.27018924]
[1735179387844,0.1,99141.0,99139.0,0.27118924]
[1735179388151,0.1,99141.0,99139.0,0.27518924]
[1735179388357,0.1,99141.0,99139.0,0.11280124]
[1735179388844,0.1,99141.0,99139.0,0.11680124]
[1735179389040,0.1,99141.0,99139.0,0.10880124]
[1735179389243,0.1,99141.0,99139.0,0.11080124]
[1735179389541,0.0001716,99161.0,99139.0,0.11280124]
[1735179389743,0.1,99141.0,99140.0,0.00068794]
[1735179390115,0.1,99141.0,99140.0,0.00548876]
[1735179391088,0.0001716,99161.0,99140.0,0.00548876]
[1735179391614,0.0001716,99161.0,99140.0,0.00948876]
[1735179391816,0.0001716,99161.0,99140.0,0.01148876]
[1735179392229,0.0001716,99161.0,99140.0,0.00948876]
[1735179392533,0.0001716,99161.0,99140.0,0.01148876]
[1735179392974,0.0001716,99161.0,99140.0,0.00748876]
[1735179393202,0.0001716,99161.0,99140.0,0.01148876]
[1735179394121,0.1,99141.0,99140.0,0.01148876]
[1735179394329,0.0001716,99161.0,99140.0,0.01148876]
[1735179394560,0.1000857,99141.0,99140.0,0.01148876]
[1735179394764,8.57e-05,99141.0,99140.0,0.01148876]
[1735179394966,8.57e-05,99141.0,99140.0,0.00748876]
[1735179395172,8.57e-05,99141.0,99140.0,0.00948876]
[1735179395173,0.1000857,99141.0,99140.0,0.00948876]
[1735179395375,0.0001716,99161.0,99140.0,0.00948876]
[1735179395588,0.0001716,99161.0,99140.0,0.01148876]
[1735179396638,0.1,99141.0,99140.0,0.01148876]
[1735179397037,0.1,99141.0,99140.0,0.00948876]
[1735179397237,0.0001716,99161.0,99140.0,0.01148876]
[1735179397412,0.1,99141.0,99140.0,0.00748876]
[1735179397628,0.0001716,99161.0,99142.0,0.161384]
[1735179397880,0.0001716,99161.0,99143.0,0.10398632]
[1735179398092,0.0001716,99161.0,99146.0,0.15]
[1735179398316,0.0001716,99161.0,99158.0,0.161357]
[1735179398508,0.00069022,99161.0,99159.0,0.10398632]
[1735179398642,0.00069022,99161.0,99160.0,0.161355]
[1735179398841,0.00069022,99161.0,99160.0,0.26634969]
[1735179399048,0.00069022,99161.0,99160.0,0.26534132]
[1735179399677,0.00069022,99161.0,99160.0,0.59724132]
[1735179399879,0.00069022,99161.0,99160.0,0.65458291]
[1735179400626,0.00069022,99161.0,99160.0,0.67152225]
[1735179400843,0.0819858,99213.0,99169.0,0.15]
[1735179401045,0.0819858,99213.0,99168.0,0.261342]
[1735179401046,0.00015233,99174.0,99173.0,0.25398632]
[1735179401251,0.00015233,99174.0,99173.0,0.28296725]
[1735179401457,0.00015233,99174.0,99173.0,0.32135731]
[1735179401665,0.00015233,99174.0,99173.0,0.32197812]
[1735179401880,0.00015233,99174.0,99173.0,0.40387812]
[1735179402300,0.00015233,99174.0,99173.0,0.53587812]
[1735179402502,0.00015233,99174.0,99173.0,0.53593609]
[1735179402926,0.00015233,99174.0,99173.0,0.5557739]
[1735179403316,0.00015233,99174.0,99173.0,0.89623229]
[1735179403641,0.00015233,99174.0,99173.0,0.88723229]
[1735179404065,0.00015233,99174.0,99173.0,0.89623229]
[1735179404295,0.00015233,99174.0,99173.0,0.83383273]
[1735179404709,0.00015233,99174.0,99173.0,1.10638602]
[1735179404910,0.00015233,99174.0,99173.0,1.11338602]
[1735179405109,0.00015233,99174.0,99173.0,0.99038602]
[1735179406241,0.03043293,99200.0,99187.0,0.16131]
[1735179406409,0.03043293,99200.0,99188.0,0.25398632]
[1735179406767,0.03043293,99200.0,99189.0,0.00100807]
[1735179406991,0.03043293,99200.0,99190.0,0.10457256]
[1735179408227,0.03043293,99200.0,99190.0,0.10757256]
[1735179408356,0.03043293,99200.0,99190.0,0.11557256]
[1735179408763,0.03048524,99200.0,99190.0,0.11557256]
[1735179409398,0.03048524,99200.0,99190.0,0.01158624]
[1735179409399,0.03043293,99193.0,99190.0,0.01158624]
[1735179410028,0.03043293,99193.0,99190.0,0.00858624]
[1735179410450,0.03043293,99193.0,99190.0,0.00458624]
[1735179410819,0.03043293,99193.0,99179.0,0.01128803]
[1735179411019,0.03043293,99192.0,99190.0,0.003]
[1735179411393,0.03043293,99192.0,99190.0,0.004]
[1735179411609,0.03043293,99192.0,99190.0,0.001]
[1735179413178,0.03043293,99192.0,99180.0,0.10398632]
[1735179413373,0.03043293,99192.0,99191.0,0.10398632]
[1735179414576,0.03043293,99192.0,99191.0,0.10498632]
[1735179415248,0.03048524,99200.0,99191.0,0.18718632]
[1735179415428,5.231e-05,99200.0,99192.0,0.00100802]
[1735179415631,5.231e-05,99200.0,99193.0,0.10398632]
[1735179416294,5.231e-05,99200.0,99194.0,0.00470862]
[1735179416501,5.231e-05,99200.0,99195.0,0.10398632]
[1735179416836,5.231e-05,99200.0,99196.0,0.00471133]
[1735179417045,5.231e-05,99200.0,99196.0,0.1092717]
[1735179417448,5.231e-05,99200.0,99197.0,0.10398632]
[1735179417876,0.0001,99209.0,99198.0,0.00056998]
[1735179418223,0.0001,99209.0,99199.0,0.10398632]
[1735179418629,0.0001,99209.0,99200.0,0.00056592]
[1735179418805,0.0001,99209.0,99201.0,0.10398632]
[1735179419247,0.0001,99209.0,99202.0,0.00056185]
[1735179419478,0.0001,99209.0,99202.0,0.10454817]
[1735179420490,0.0001,99209.0,99202.0,0.10654817]
[1735179420713,0.0831,99206.0,99202.0,0.00756185]
[1735179420955,0.0831,99206.0,99202.0,0.007]
[1735179422114,0.0831,99206.0,99202.0,0.005]
[1735179422575,0.0831,99206.0,99182.0,0.08917833]
[1735179422828,0.0831,99206.0,99190.0,0.00022351]
[1735179423833,0.10567728,99200.0,99190.0,0.00022351]
[1735179424075,0.10567728,99200.0,99190.0,0.00122351]
[1735179424076,0.0831,99199.0,99190.0,0.00122351]
[1735179424576,0.0831,99199.0,99190.0,0.00022351]
[1735179426377,0.28708632,99199.0,99190.0,0.00022351]
[1735179426584,0.1,99191.0,99190.0,0.00022351]
[1735179426791,0.1252,99169.0,99159.0,0.08917833]
[1735179427000,0.1252,99169.0,99160.0,0.00064725]
[1735179427142,0.1252,99169.0,99160.0,0.00530354]
[1735179428348,0.1252,99169.0,99160.0,0.001]
[1735179429339,0.1252,99169.0,99159.0,0.00505233]
[1735179429340,0.1252,99169.0,99159.0,5.233e-05]
[1735179429749,0.1252,99169.0,99160.0,0.002]
[1735179429951,0.1252,99169.0,99160.0,0.001]
[1735179430279,0.01978889,99168.0,99159.0,5.233e-05]
[1735179430457,0.1292,99169.0,99159.0,5.233e-05]
[1735179430821,0.0489,99169.0,99159.0,5.233e-05]
[1735179431028,0.0489,99169.0,99159.0,0.00022393]
[1735179431029,0.0499,99169.0,99159.0,0.00022393]
[1735179431204,0.0549,99169.0,99159.0,0.00022393]
[1735179432301,0.1529,99169.0,99159.0,0.00022393]
[1735179432501,0.1489,99169.0,99159.0,0.00022393]
[1735179432708,0.1499,99169.0,99159.0,0.00022393]
[1735179433261,0.1479,99169.0,99159.0,0.00022393]
[1735179433455,0.1499,99169.0,99159.0,0.00022393]
[1735179433663,0.2273,99168.0,99159.0,0.00022393]
[1735179435850,0.2293,99168.0,99159.0,0.00022393]
[1735179436256,0.2283,99168.0,99159.0,0.00022393]
[1735179436458,0.2273,99168.0,99159.0,0.00022393]
[1735179436876,0.2293,99168.0,99159.0,0.00022393]
[1735179437059,0.2283,99168.0,99159.0,0.00022393]
[1735179437255,0.2,99160.0,99159.0,0.00022393]
[1735179437464,0.1,99142.0,99139.0,0.0001714]
[1735179439701,0.102,99142.0,99139.0,0.0001714]
[1735179440333,0.105,99142.0,99139.0,0.0001714]
[1735179442780,0.11569551,99142.0,99139.0,0.0001714]
[1735179444479,0.01982694,99140.0,99139.0,0.0001714]
[1735179446135,0.02082694,99140.0,99139.0,0.0001714]
[1735179446338,0.02282694,99140.0,99139.0,0.0001714]
[1735179456008,0.5179555,99140.0,99139.0,0.0001714]
[1735179456163,0.1,99122.0,99112.0,0.0001714]
[1735179456368,0.2267,99121.0,99112.0,0.0001714]
[1735179456566,0.0482,99120.0,99112.0,0.0001714]
[1735179456807,0.1,99117.0,99112.0,0.0001714]
[1735179457373,0.1,99117.0,99112.0,0.00069002]
[1735179458763,0.02027196,99113.0,99112.0,0.00069002]
[1735179459962,0.02127196,99113.0,99112.0,0.00069002]
[1735179460367,0.02027196,99113.0,99112.0,0.00069002]
[1735179461147,0.4025908,99113.0,99112.0,0.00069002]
[1735179461265,0.57395828,99113.0,99112.0,0.00069002]
[1735179461472,0.1,99101.0,99078.0,0.0824]
[1735179461677,0.21135456,99100.0,99090.0,0.00032705]
[1735179461872,0.0482,99099.0,99090.0,0.00032705]
[1735179462080,0.1,99094.0,99090.0,0.00032705]
[1735179462284,0.1,99093.0,99090.0,0.00032705]
[1735179462515,0.15,99093.0,99090.0,0.00032705]
[1735179462924,0.0482,99099.0,99090.0,0.00032705]
[1735179462925,0.001,99099.0,99090.0,0.00032705]
[1735179463123,0.10567728,99100.0,99090.0,0.00032705]
[1735179463345,0.01068545,99105.0,99091.0,0.010045]
[1735179463546,0.151,99113.0,99092.0,0.10398632]
[1735179463547,0.001,99113.0,99092.0,0.10398632]
[1735179463947,0.001,99113.0,99094.0,0.0824]
[1735179464173,0.003,99099.0,99095.0,0.10499533]
[1735179464755,0.004,99099.0,99095.0,0.10499533]
[1735179464958,0.004,99099.0,99096.0,0.00077751]
[1735179465192,0.003,99099.0,99097.0,0.10398632]
[1735179465403,0.10567728,99110.0,99098.0,0.00077344]
[1735179465868,0.10567728,99110.0,99095.0,0.003]
[1735179466278,0.001,99099.0,99096.0,0.006]
[1735179466485,0.10567728,99110.0,99095.0,0.003]
[1735179466798,0.10567728,99110.0,99098.0,0.004]
[1735179467004,0.10567728,99108.0,99098.0,0.004]
[1735179467220,0.10567728,99108.0,99097.0,0.002]
[1735179467424,0.10567728,99107.0,99097.0,0.002]
[1735179467554,0.10567728,99107.0,99096.0,0.002]
[1735179468666,0.10567728,99107.0,99096.0,0.001]
[1735179469421,0.10567728,99107.0,99096.0,0.004]
[1735179469847,0.10567728,99107.0,99096.0,0.10798632]
[1735179470309,0.10567728,99107.0,99097.0,0.01017506]
[1735179470709,0.10567728,99107.0,99098.0,0.0775]
[1735179470926,0.1,99139.0,99097.0,0.01017506]
[1735179470927,0.10567728,99130.0,99100.0,0.1242]
[1735179471151,0.10567728,99150.0,99100.0,0.1242]
[1735179471152,0.0314245,99129.0,99113.0,0.0775]
[1735179471356,0.10567728,99140.0,99114.0,0.26642508]
[1735179471775,0.10567728,99140.0,99116.0,0.161427]
[1735179472026,0.10567728,99140.0,99117.0,0.10499509]
[1735179472676,0.11267728,99140.0,99117.0,0.10499509]
[1735179473058,0.11267728,99140.0,99117.0,0.10599509]
[1735179473262,0.12067728,99140.0,99117.0,0.10599509]
[1735179473433,0.11367728,99140.0,99117.0,0.10499509]
[1735179473766,0.001,99129.0,99118.0,0.00073271]
[1735179473986,0.001,99129.0,99119.0,0.10499509]
[1735179474192,0.11367728,99140.0,99119.0,0.10499509]
[1735179474389,0.11367728,99140.0,99120.0,0.00072864]
[1735179474619,0.11367728,99140.0,99121.0,0.10398632]
[1735179474829,0.008,99140.0,99121.0,0.10398632]
[1735179475034,0.008,99140.0,99122.0,0.00072457]
[1735179475266,0.008,99140.0,99123.0,0.10398632]
[1735179475675,0.02064854,99146.0,99124.0,0.0007205]
[1735179475914,0.02064854,99146.0,99125.0,0.10398632]
[1735179476262,0.02064854,99146.0,99126.0,0.00944464]
[1735179477268,0.02064854,99146.0,99127.0,0.00071439]